[Event "AUT-ch Open 2020"]
[Site "Graz"]
[Date "2020.02.20"]
[Round "8.7"]
[White "Palac, Mladen"]
[Black "Karthikeyan, P.."]
[Result "1-0"]
[ECO "A05"]
[WhiteElo "2536"]
[BlackElo "2406"]
[Annotator "ChessBase"]
[PlyCount "61"]
[EventDate "2020.02.14"]
[EventType "swiss"]
[EventCountry "AUT"]
[SourceTitle "playchess.com"]
[Source "ChessBase"]
[SourceQuality "1"]
[TimeControl "40/5400+30:1800+30"]

1. Nf3 {[%emt 0:00:00]} Nf6 {[%emt 0:02:46]} 2. c4 {[%emt 0:00:00]} g6 {[%emt 0:02:02]} 3. Nc3 {[%emt 0:00:00]} d5 {[%emt 0:00:02]} 4. cxd5 {[%emt 0:00:28]} Nxd5 {[%emt 0:00:06]} 5. Qb3 {[%emt 0:00:36]} Nb6 {[%emt 0:00:45]} 6. d4 {[%emt 0:00:08]} Bg7 {[%emt 0:01:14]} 7. Bf4 {[%emt 0:00:09]} O-O {[%emt 0:02:18]} 8. Rd1 {[%emt 0:02:34]} a5 {[%emt 0:00:57]} 9. e4 {[%emt 0:12:23]} Bg4 {[%emt 0:02:26]} 10. d5 {[%emt 0:00:19]} N8d7 {[%emt 0:02:10]} 11. Be2 {[%emt 0:06:30]} e5 {[%emt 0:05:40]} 12. Bg5 {[%emt 0:03:45]} f6 {[%emt 0:02:01]} 13. Be3 {[%emt 0:00:31]} a4 {[%emt 0:02:32]} 14. Qc2 {[%emt 0:04:51]} c6 {[%emt 0:06:41]} 15. dxc6 {[%emt 0:10:23]} bxc6 {[%emt 0:01:25]} 16. Nxe5 {[%emt 0:00:11]} Bxe2 {[%emt 0:04:26]} 17. Qxe2 {[%emt 0:02:43]} fxe5 {[%emt 0:00:26]} 18. Bxb6 {[%emt 0:00:02]} Qxb6 {[%emt 0:00:19]} 19. Rxd7 {[%emt 0:00:01]} a3 {[%emt 0:06:06]} 20. b3 {[%emt 0:00:12]} Qc5 {[%emt 0:02:52]} 21. Rd3 {[%emt 0:02:49]} Rad8 {[%emt 0:03:11]} 22. O-O {[%emt 0:00:07]} Rd4 {[%emt 0:01:04]} 23. Rfd1 {[%emt 0:00:21]} Rfd8 {[%emt 0:02:24]} 24. g3 {[%emt 0:02:35]} Bf6 {[%emt 0:12:36]} 25. Kg2 {[%emt 0:01:29]} Kg7 {[%emt 0:01:51]} 26. Rxd4 {[%emt 0:01:27]} Rxd4 {[%emt 0:02:56]} 27. Rc1 {[%emt 0:11:58]} h5 {[%emt 0:02:25]} 28. Rc2 {[%emt 0:03:40]} Qb4 {[%emt 0:01:38]} 29. Qa6 {[%emt 0:03:11]} Rxe4 {[%emt 0:00:50]} 30. Qxc6 {[%emt 0:00:25]} Re1 {[%emt 0:00:45]} 31. Qxf6+ {[%emt 0:00:11]} 1-0

[Event "AUT-ch Open 2020"]
[Site "Graz"]
[Date "2020.02.20"]
[Round "8.9"]
[White "Nitin, S.."]
[Black "Lodici, Lorenzo"]
[Result "1/2-1/2"]
[ECO "B11"]
[WhiteElo "2353"]
[BlackElo "2492"]
[Annotator "ChessBase"]
[PlyCount "61"]
[EventDate "2020.02.14"]
[EventType "swiss"]
[EventCountry "AUT"]
[SourceTitle "playchess.com"]
[Source "ChessBase"]
[SourceQuality "1"]
[TimeControl "40/5400+30:1800+30"]

1. e4 {[%emt 0:00:12]} c6 {[%emt 0:00:00]} 2. Nc3 {[%emt 0:00:57]} d5 {[%emt 0:00:00]} 3. Nf3 {[%emt 0:00:11]} Bg4 {[%emt 0:08:52]} 4. h3 {[%emt 0:00:42]} Bxf3 {[%emt 0:00:04]} 5. Qxf3 {[%emt 0:00:23]} Nf6 {[%emt 0:00:14]} 6. d3 {[%emt 0:03:22]} e6 {[%emt 0:00:17]} 7. Bd2 {[%emt 0:01:24]} Bb4 {[%emt 0:03:36]} 8. e5 {[%emt 0:00:21]} Nfd7 {[%emt 0:01:20]} 9. Qg4 {[%emt 0:00:34]} Bf8 {[%emt 0:03:41]} 10. d4 {[%emt 0:03:20]} c5 {[%emt 0:05:38]} 11. dxc5 {[%emt 0:14:21]} Nc6 {[%emt 0:01:48]} 12. f4 {[%emt 0:11:18]} Nxc5 {[%emt 0:01:39]} 13. O-O-O {[%emt 0:01:09]} a6 {[%emt 0:04:14]} 14. Kb1 {[%emt 0:10:07]} h5 {[%emt 0:08:43]} 15. Qg3 {[%emt 0:09:00]} Qc7 {[%emt 0:04:32]} 16. Be3 {[%emt 0:04:57]} O-O-O {[%emt 0:01:16]} 17. Qf2 {[%emt 0:00:33]} Qa5 {[%emt 0:01:36]} 18. Be2 {[%emt 0:09:10]} h4 {[%emt 0:03:47]} 19. Bf3 {[%emt 0:05:17]} Kb8 {[%emt 0:08:16]} 20. Bd2 {[%emt 0:01:29]} Qb6 {[%emt 0:06:59]} 21. Be3 {[%emt 0:00:28]} Qa5 {[%emt 0:02:02]} 22. Bd2 {[%emt 0:00:09]} Na4 {[%emt 0:05:04]} 23. Nxa4 {[%emt 0:03:24]} Qxa4 {[%emt 0:00:02]} 24. f5 {[%emt 0:00:14]} Rc8 {[%emt 0:06:00]} 25. fxe6 {[%emt 0:01:01]} fxe6 {[%emt 0:00:01]} 26. Bg4 {[%emt 0:00:19]} Nd8 {[%emt 0:04:47]} 27. Bg5 {[%emt 0:03:55]} Bc5 {[%emt 0:00:52]} 28. Qf3 {[%emt 0:00:19]} Bd4 {[%emt 0:03:39]} 29. Qb3 {[%emt 0:06:53]} Qxb3 {[%emt 0:00:13]} 30. axb3 {[%emt 0:00:07]} Bxe5 {[%emt 0:00:04]} 31. Bxd8 {[%emt 0:00:14]} 1/2-1/2

[Event "AUT-ch Open 2020"]
[Site "Graz"]
[Date "2020.02.20"]
[Round "8.11"]
[White "Froewis, Georg"]
[Black "Ozturk, Kubra"]
[Result "1-0"]
[ECO "A28"]
[WhiteElo "2461"]
[BlackElo "2286"]
[Annotator "ChessBase"]
[PlyCount "55"]
[EventDate "2020.02.14"]
[EventType "swiss"]
[EventCountry "AUT"]
[SourceTitle "playchess.com"]
[Source "ChessBase"]
[SourceQuality "1"]
[TimeControl "40/5400+30:1800+30"]

1. c4 {[%emt 0:00:00]} e5 {[%emt 0:01:01]} 2. Nc3 {[%emt 0:00:00]} Bb4 {[%emt 0:00:20]} 3. Qc2 {[%emt 0:00:00]} Nf6 {[%emt 0:00:31]} 4. Nf3 {[%emt 0:01:01]} Nc6 {[%emt 0:01:13]} 5. e3 {[%emt 0:00:09]} O-O {[%emt 0:01:24]} 6. Nd5 {[%emt 0:00:03]} Re8 {[%emt 0:04:41]} 7. Qf5 {[%emt 0:00:05]} d6 {[%emt 0:14:10]} 8. Nxf6+ {[%emt 0:00:05]} Qxf6 {[%emt 0:00:45]} 9. Qxf6 {[%emt 0:00:05]} gxf6 {[%emt 0:00:02]} 10. a3 {[%emt 0:00:06]} Bc5 {[%emt 0:00:23]} 11. b4 {[%emt 0:00:04]} Bb6 {[%emt 0:00:02]} 12. Bb2 {[%emt 0:00:12]} a5 {[%emt 0:04:03]} 13. b5 {[%emt 0:00:02]} Ne7 {[%emt 0:03:23]} 14. d4 {[%emt 0:00:05]} c6 {[%emt 0:07:11]} 15. c5 {[%emt 0:05:04]} dxc5 {[%emt 0:02:20]} 16. dxe5 {[%emt 0:00:02]} a4 {[%emt 0:05:00]} 17. O-O-O {[%emt 0:02:03]} Nd5 {[%emt 0:25:59]} 18. exf6 {[%emt 0:05:53]} Ba5 {[%emt 0:03:33]} 19. Bc4 {[%emt 0:04:16]} Nb6 {[%emt 0:05:05]} 20. Ne5 {[%emt 0:12:57]} Nxc4 {[%emt 0:00:48]} 21. Nxc4 {[%emt 0:00:05]} Be6 {[%emt 0:07:01]} 22. Nxa5 {[%emt 0:03:39]} Rxa5 {[%emt 0:00:05]} 23. bxc6 {[%emt 0:00:02]} bxc6 {[%emt 0:00:15]} 24. Rd6 {[%emt 0:00:05]} Rb5 {[%emt 0:02:20]} 25. Rhd1 {[%emt 0:00:59]} Rb6 {[%emt 0:01:54]} 26. Rxe6 {[%emt 0:06:47]} fxe6 {[%emt 0:00:18]} 27. Rd7 {[%emt 0:00:05]} Rxb2 {[%emt 0:08:40]} 28. f7+ {[%emt 0:01:37]} 1-0

[Event "AUT-ch Open 2020"]
[Site "Graz"]
[Date "2020.02.20"]
[Round "8.11"]
[White "Welling, Gerard"]
[Black "Buonanno, Raffaele"]
[Result "1-0"]
[ECO "B08"]
[WhiteElo "2286"]
[BlackElo "2151"]
[Annotator "NA"]
[PlyCount "39"]
[EventDate "2020.02.14"]
[EventType "swiss"]
[EventCountry "AUT"]
[SourceTitle "playchess.com"]
[Source "ChessBase"]
[SourceQuality "1"]
[TimeControl "40/5400+30:1800+30"]

1. d4 {[%emt 0:00:00]} Nf6 {[%emt 0:00:00]} 2. Nf3 {[%emt 0:00:00]} g6 {[%emt 0:00:34]} 3. Nc3 {[%emt 0:00:04]} Bg7 {[%emt 0:00:22]} 4. e4 {[%emt 0:00:05]} d6 {[%emt 0:00:05]} 5. Be3 {[%emt 0:00:04]} a6 {[%emt 0:00:32]} 6. Bd3 {[%emt 0:04:31]} O-O {[%emt 0:00:17]} 7. Qd2 {[%emt 0:01:00]} b5 {[%emt 0:02:16]} 8. a4 {[%emt 0:01:33]} b4 {[%emt 0:03:59]} 9. Ne2 {[%emt 0:00:07]} a5 {[%emt 0:02:07]} 10. Bh6 {[%emt 0:00:32]} Nbd7 {[%emt 0:09:46]} 11. Bxg7 {[%emt 0:01:08]} Kxg7 {[%emt 0:00:03]} 12. e5 {[%emt 0:01:05]} Nd5 {[%emt 0:05:12]} 13. h4 {[%emt 0:06:06]} h5 {[%emt 0:02:15]} 14. e6 {[%emt 0:01:37]} fxe6 {[%emt 0:00:54]} 15. Bxg6 {[%emt 0:00:35]} Kxg6 {[%emt 0:02:17]} 16. Qg5+ {[%emt 0:00:16]} Kh7 {[%emt 0:00:16]} 17. Qxh5+ {[%emt 0:00:09]} Kg8 {[%emt 0:00:06]} 18. Qg6+ {[%emt 0:01:07]} Kh8 {[%emt 0:00:08]} 19. Qh6+ {[%emt 0:02:42]} Kg8 {[%emt 0:00:05]} 20. Qxe6+ {[%emt 0:01:07]} 1-0

[Event "AUT-ch Open 2020"]
[Site "Graz"]
[Date "2020.02.20"]
[Round "8.16"]
[White "Kilgus, Georg"]
[Black "Chylewski, Patryk"]
[Result "1-0"]
[ECO "E10"]
[WhiteElo "2450"]
[BlackElo "2450"]
[Annotator "ChessBase"]
[PlyCount "73"]
[EventDate "2020.02.14"]
[EventType "swiss"]
[EventCountry "AUT"]
[SourceTitle "playchess.com"]
[Source "ChessBase"]
[SourceQuality "1"]
[TimeControl "40/5400+30:1800+30"]

1. d4 {[%emt 0:00:00]} Nf6 {[%emt 0:00:00]} 2. c4 {[%emt 0:00:00]} e6 {[%emt 0:00:00]} 3. Nf3 {[%emt 0:00:00]} d5 {[%emt 0:00:00]} 4. g3 {[%emt 0:00:00]} Bb4+ {[%emt 0:00:00]} 5. Bd2 {[%emt 0:00:00]} Bd6 {[%emt 0:00:00]} 6. Nc3 {[%emt 0:00:00]} c6 {[%emt 0:04:26]} 7. Qc2 {[%emt 0:00:27]} Nbd7 {[%emt 0:03:15]} 8. e4 {[%emt 0:00:32]} dxe4 {[%emt 0:00:52]} 9. Nxe4 {[%emt 0:01:20]} Nxe4 {[%emt 0:00:05]} 10. Qxe4 {[%emt 0:00:04]} Qc7 {[%emt 0:01:23]} 11. Bg2 {[%emt 0:09:16]} O-O {[%emt 0:05:32]} 12. O-O {[%emt 0:00:06]} e5 {[%emt 0:06:51]} 13. c5 {[%emt 0:03:47]} Be7 {[%emt 0:01:09]} 14. Nxe5 {[%emt 0:00:03]} Nxe5 {[%emt 0:00:20]} 15. Bf4 {[%emt 0:00:03]} Be6 {[%emt 0:02:58]} 16. b4 {[%emt 0:04:09]} Qd7 {[%emt 0:08:03]} 17. dxe5 {[%emt 0:02:41]} Rfd8 {[%emt 0:06:57]} 18. Bf3 {[%emt 0:02:06]} Bd5 {[%emt 0:01:19]} 19. Qe2 {[%emt 0:03:33]} Bxf3 {[%emt 0:01:01]} 20. Qxf3 {[%emt 0:00:03]} Qf5 {[%emt 0:01:39]} 21. g4 {[%emt 0:10:42]} Qd3 {[%emt 0:04:35]} 22. Qxd3 {[%emt 0:06:55]} Rxd3 {[%emt 0:00:06]} 23. Rfd1 {[%emt 0:00:10]} Rad8 {[%emt 0:00:17]} 24. Rxd3 {[%emt 0:00:04]} Rxd3 {[%emt 0:00:06]} 25. Be3 {[%emt 0:00:02]} Rd5 {[%emt 0:13:49]} 26. Kg2 {[%emt 0:11:11]} g5 {[%emt 0:02:39]} 27. h4 {[%emt 0:22:18]} h6 {[%emt 0:07:44]} 28. hxg5 {[%emt 0:01:25]} hxg5 {[%emt 0:00:10]} 29. Rh1 {[%emt 0:00:24]} b6 {[%emt 0:11:18]} 30. cxb6 {[%emt 0:00:36]} axb6 {[%emt 0:00:08]} 31. Rh6 {[%emt 0:00:04]} Bxb4 {[%emt 0:05:50]} 32. Bxg5 {[%emt 0:00:54]} Bf8 {[%emt 0:00:21]} 33. Rxc6 {[%emt 0:00:50]} Rxe5 {[%emt 0:00:05]} 34. Bf6 {[%emt 0:00:23]} Re8 {[%emt 0:09:47]} 35. Rxb6 {[%emt 0:00:12]} Bc5 {[%emt 0:01:18]} 36. Rb5 {[%emt 0:01:40]} Ba7 {[%emt 0:00:13]} 37. Rh5 {[%emt 0:00:08]} 1-0

[Event "AUT-ch Open 2020"]
[Site "Graz"]
[Date "2020.02.20"]
[Round "8.16"]
[White "Valeanu, Eduard-Andrei"]
[Black "Horvath, Reka"]
[Result "1-0"]
[ECO "B23"]
[WhiteElo "2427"]
[BlackElo "2018"]
[Annotator "NA"]
[PlyCount "47"]
[EventDate "2020.02.14"]
[EventType "swiss"]
[EventCountry "AUT"]
[SourceTitle "playchess.com"]
[Source "ChessBase"]
[SourceQuality "1"]
[TimeControl "40/5400+30:1800+30"]

1. e4 {[%emt 0:01:25]} c5 {[%emt 0:02:27]} 2. Nc3 {[%emt 0:00:17]} Nc6 {[%emt 0:00:10]} 3. Bb5 {[%emt 0:00:07]} Nd4 {[%emt 0:01:33]} 4. Bc4 {[%emt 0:00:06]} g6 {[%emt 0:00:37]} 5. Nf3 {[%emt 0:00:25]} Bg7 {[%emt 0:00:43]} 6. Nxd4 {[%emt 0:00:16]} cxd4 {[%emt 0:00:08]} 7. Qf3 {[%emt 0:00:06]} Nh6 {[%emt 0:17:11]} 8. d3 {[%emt 0:01:39]} O-O {[%emt 0:09:47]} 9. Ne2 {[%emt 0:00:05]} b5 {[%emt 0:06:17]} 10. Bd5 {[%emt 0:01:31]} Rb8 {[%emt 0:00:08]} 11. Qg3 {[%emt 0:00:50]} Qb6 {[%emt 0:03:35]} 12. Qh4 {[%emt 0:00:55]} g5 {[%emt 0:08:21]} 13. Bxg5 {[%emt 0:00:19]} Kh8 {[%emt 0:03:25]} 14. Bxe7 {[%emt 0:01:12]} Re8 {[%emt 0:00:35]} 15. Bg5 {[%emt 0:02:04]} Bb7 {[%emt 0:04:08]} 16. Bxb7 {[%emt 0:00:48]} Rxb7 {[%emt 0:00:07]} 17. O-O {[%emt 0:00:32]} f5 {[%emt 0:02:18]} 18. Ng3 {[%emt 0:01:44]} fxe4 {[%emt 0:02:42]} 19. Nxe4 {[%emt 0:00:42]} Nf5 {[%emt 0:00:26]} 20. Qh3 {[%emt 0:00:58]} Qg6 {[%emt 0:00:35]} 21. Rae1 {[%emt 0:00:39]} Rg8 {[%emt 0:03:58]} 22. Bf4 {[%emt 0:02:18]} d5 {[%emt 0:02:17]} 23. Ng5 {[%emt 0:02:10]} Rb6 {[%emt 0:04:30]} 24. Qxh7+ {[%emt 0:00:18]} 1-0

[Event "AUT-ch Open 2020"]
[Site "Graz"]
[Date "2020.02.20"]
[Round "8.17"]
[White "Stukan, Martin"]
[Black "Schnider, Gert"]
[Result "1/2-1/2"]
[ECO "C96"]
[WhiteElo "2292"]
[BlackElo "2429"]
[Annotator "NA"]
[PlyCount "56"]
[EventDate "2020.02.14"]
[EventType "swiss"]
[EventCountry "AUT"]
[SourceTitle "playchess.com"]
[Source "ChessBase"]
[SourceQuality "1"]
[TimeControl "40/5400+30:1800+30"]

1. e4 {[%emt 0:00:00]} e5 {[%emt 0:00:00]} 2. Nf3 {[%emt 0:00:00]} Nc6 {[%emt 0:00:00]} 3. Bb5 {[%emt 0:00:00]} a6 {[%emt 0:00:00]} 4. Ba4 {[%emt 0:00:00]} Nf6 {[%emt 0:00:00]} 5. O-O {[%emt 0:00:00]} Be7 {[%emt 0:00:01]} 6. Re1 {[%emt 0:00:00]} b5 {[%emt 0:00:05]} 7. Bb3 {[%emt 0:00:00]} d6 {[%emt 0:00:15]} 8. c3 {[%emt 0:00:02]} O-O {[%emt 0:00:08]} 9. h3 {[%emt 0:00:03]} Na5 {[%emt 0:02:24]} 10. Bc2 {[%emt 0:00:04]} d5 {[%emt 0:00:46]} 11. d4 {[%emt 0:01:12]} dxe4 {[%emt 0:02:10]} 12. Nxe5 {[%emt 0:00:33]} c5 {[%emt 0:01:16]} 13. Be3 {[%emt 0:03:15]} Qc7 {[%emt 0:09:56]} 14. Nd2 {[%emt 0:00:43]} Bb7 {[%emt 0:02:57]} 15. Bf4 {[%emt 0:00:26]} Bd6 {[%emt 0:10:49]} 16. Nxe4 {[%emt 0:01:45]} Nxe4 {[%emt 0:03:16]} 17. Bxe4 {[%emt 0:02:05]} f6 {[%emt 0:01:36]} 18. Bxh7+ {[%emt 1:11:31]} Kxh7 {[%emt 0:00:27]} 19. Qh5+ {[%emt 0:00:05]} Kg8 {[%emt 0:00:14]} 20. Ng6 {[%emt 0:00:05]} Rfe8 {[%emt 0:08:47]} 21. Qh8+ {[%emt 0:00:13]} Kf7 {[%emt 0:00:08]} 22. Qh5 {[%emt 0:00:19]} Kg8 {[%emt 0:00:24]} 23. Bxd6 {[%emt 0:05:45]} Qxd6 {[%emt 0:00:10]} 24. dxc5 {[%emt 0:00:24]} Qc7 {[%emt 0:04:46]} 25. Qh8+ {[%emt 0:00:16]} Kf7 {[%emt 0:00:01]} 26. Qh5 {[%emt 0:00:09]} Kg8 {[%emt 0:00:09]} 27. Qh8+ {[%emt 0:03:04]} Kf7 {[%emt 0:00:01]} 28. Qh5 {[%emt 0:00:13]} Kg8 1/2-1/2

[Event "AUT-ch Open 2020"]
[Site "Graz"]
[Date "2020.02.20"]
[Round "8.18"]
[White "Rathnakaran, K.."]
[Black "Nolz, Tom"]
[Result "1-0"]
[ECO "C00"]
[WhiteElo "2334"]
[BlackElo "2153"]
[Annotator "NA"]
[PlyCount "87"]
[EventDate "2020.02.14"]
[EventType "swiss"]
[EventCountry "AUT"]
[SourceTitle "playchess.com"]
[Source "ChessBase"]
[SourceQuality "1"]
[TimeControl "40/5400+30:1800+30"]

1. e4 {[%emt 0:06:03]} e6 {[%emt 0:00:00]} 2. d3 {[%emt 0:00:03]} b6 {[%emt 0:00:18]} 3. g3 {[%emt 0:00:06]} Bb7 {[%emt 0:00:24]} 4. Bg2 {[%emt 0:00:05]} d5 {[%emt 0:00:14]} 5. Qe2 {[%emt 0:00:26]} Be7 {[%emt 0:01:18]} 6. Nf3 {[%emt 0:00:15]} d4 {[%emt 0:03:20]} 7. O-O {[%emt 0:00:10]} c5 {[%emt 0:00:10]} 8. c3 {[%emt 0:00:09]} Nc6 {[%emt 0:00:12]} 9. cxd4 {[%emt 0:00:07]} cxd4 {[%emt 0:00:21]} 10. a3 {[%emt 0:00:08]} Nf6 {[%emt 0:00:25]} 11. b4 {[%emt 0:00:05]} b5 {[%emt 0:01:06]} 12. Bb2 {[%emt 0:01:03]} e5 {[%emt 0:03:10]} 13. Nh4 {[%emt 0:00:51]} O-O {[%emt 0:00:18]} 14. Nf5 {[%emt 0:00:14]} a5 {[%emt 0:03:04]} 15. bxa5 {[%emt 0:03:10]} Bc5 {[%emt 0:09:39]} 16. Rc1 {[%emt 0:00:05]} Nd7 {[%emt 0:01:39]} 17. Bh3 {[%emt 0:02:24]} Ncb8 {[%emt 0:02:20]} 18. f4 {[%emt 0:01:42]} g6 {[%emt 0:01:58]} 19. fxe5 {[%emt 0:00:09]} gxf5 {[%emt 0:00:58]} 20. Qh5 {[%emt 0:00:07]} Ra6 {[%emt 0:00:33]} 21. Bxf5 {[%emt 0:00:05]} Rg6 {[%emt 0:00:07]} 22. e6 {[%emt 0:02:09]} Nf6 {[%emt 0:04:44]} 23. Qh3 {[%emt 0:00:07]} Na6 {[%emt 0:09:45]} 24. exf7+ {[%emt 0:01:28]} Rxf7 {[%emt 0:03:46]} 25. Nd2 {[%emt 0:00:06]} Bf8 {[%emt 0:05:12]} 26. Bxg6 {[%emt 0:01:41]} hxg6 {[%emt 0:02:49]} 27. Nb3 {[%emt 0:00:13]} Qe7 {[%emt 0:04:59]} 28. Bxd4 {[%emt 0:01:00]} Rh7 {[%emt 0:12:55]} 29. Bxf6 {[%emt 0:06:04]} Qxf6 {[%emt 0:00:05]} 30. Rf1 {[%emt 0:00:35]} Qd6 {[%emt 0:13:31]} 31. Qg4 {[%emt 0:00:55]} Bc6 {[%emt 0:08:35]} 32. d4 {[%emt 0:05:28]} Bd7 {[%emt 0:01:37]} 33. Qf3 {[%emt 0:01:14]} Be7 {[%emt 0:03:28]} 34. e5 {[%emt 0:09:10]} Qe6 {[%emt 0:00:03]} 35. Rac1 {[%emt 0:00:06]} Be8 {[%emt 0:03:26]} 36. Qa8 {[%emt 0:06:51]} Bg5 {[%emt 0:00:47]} 37. Rc8 {[%emt 0:04:52]} Re7 {[%emt 0:00:39]} 38. d5 {[%emt 0:06:05]} Be3+ {[%emt 0:00:11]} 39. Kh1 {[%emt 0:00:49]} Qxe5 {[%emt 0:00:44]} 40. d6 {[%emt 0:00:15]} Qxd6 {[%emt 0:00:38]} 41. Rxe8+ {[%emt 0:30:07]} Rxe8 {[%emt 0:30:03]} 42. Qxe8+ {[%emt 0:00:07]} Kg7 {[%emt 0:00:13]} 43. Rf7+ {[%emt 0:00:15]} Kh6 {[%emt 0:00:04]} 44. Qh8+ {[%emt 0:00:06]} 1-0

[Event "AUT-ch Open 2020"]
[Site "Graz"]
[Date "2020.02.20"]
[Round "8.19"]
[White "Peycheva, Gergana"]
[Black "Kosakowski, Jakub"]
[Result "0-1"]
[ECO "E94"]
[WhiteElo "2413"]
[BlackElo "2413"]
[Annotator "NA"]
[PlyCount "60"]
[EventDate "2020.02.14"]
[EventType "swiss"]
[EventCountry "AUT"]
[SourceTitle "playchess.com"]
[Source "ChessBase"]
[SourceQuality "1"]
[TimeControl "40/5400+30:1800+30"]

1. d4 {[%emt 0:00:00]} Nf6 {[%emt 0:00:10]} 2. c4 {[%emt 0:00:06]} g6 {[%emt 0:00:31]} 3. Nc3 {[%emt 0:00:51]} Bg7 {[%emt 0:00:39]} 4. e4 {[%emt 0:00:54]} d6 {[%emt 0:00:08]} 5. Nf3 {[%emt 0:01:14]} O-O {[%emt 0:00:24]} 6. Be2 {[%emt 0:01:19]} e5 {[%emt 0:01:28]} 7. O-O {[%emt 0:03:32]} Na6 {[%emt 0:02:01]} 8. dxe5 {[%emt 0:11:20]} dxe5 {[%emt 0:01:16]} 9. Qc2 {[%emt 0:00:54]} Qe8 {[%emt 0:11:19]} 10. Rd1 {[%emt 0:05:55]} c6 {[%emt 0:00:23]} 11. b3 {[%emt 0:03:47]} Qe7 {[%emt 0:04:53]} 12. Bb2 {[%emt 0:08:43]} Nh5 {[%emt 0:03:20]} 13. g3 {[%emt 0:02:52]} f5 {[%emt 0:20:39]} 14. Ne1 {[%emt 0:06:43]} Nf6 {[%emt 0:00:58]} 15. Ng2 {[%emt 0:08:52]} f4 {[%emt 0:05:42]} 16. Qd2 {[%emt 0:05:43]} Ng4 {[%emt 0:05:59]} 17. Bxg4 {[%emt 0:08:51]} Bxg4 {[%emt 0:00:15]} 18. Rf1 {[%emt 0:00:29]} Rad8 {[%emt 0:02:33]} 19. Qc1 {[%emt 0:00:11]} Nb4 {[%emt 0:01:55]} 20. Ba3 {[%emt 0:01:30]} a5 {[%emt 0:00:09]} 21. f3 {[%emt 0:02:57]} Bh3 {[%emt 0:01:36]} 22. Na4 {[%emt 0:08:17]} Rd7 {[%emt 0:12:38]} 23. Rb1 {[%emt 0:02:39]} Qd8 {[%emt 0:04:20]} 24. Bxb4 {[%emt 0:01:12]} axb4 {[%emt 0:00:20]} 25. Rb2 {[%emt 0:00:32]} b5 {[%emt 0:01:13]} 26. cxb5 {[%emt 0:05:51]} cxb5 {[%emt 0:00:05]} 27. Nc5 {[%emt 0:00:04]} Qb6 {[%emt 0:00:08]} 28. Rc2 {[%emt 0:03:30]} Rc8 {[%emt 0:00:16]} 29. Ne1 {[%emt 0:02:08]} Bf8 {[%emt 0:00:29]} 30. Kh1 {[%emt 0:01:06]} Rxc5 {[%emt 0:00:14]} 0-1

[Event "AUT-ch Open 2020"]
[Site "Graz"]
[Date "2020.02.20"]
[Round "8.19"]
[White "Brinovec, David"]
[Black "Czernek, Tymon"]
[Result "0-1"]
[ECO "B22"]
[WhiteElo "2279"]
[BlackElo "2089"]
[Annotator "NA"]
[PlyCount "72"]
[EventDate "2020.02.14"]
[EventType "swiss"]
[EventCountry "AUT"]
[SourceTitle "playchess.com"]
[Source "ChessBase"]
[SourceQuality "1"]
[TimeControl "40/5400+30:1800+30"]

1. e4 {[%emt 1:30:30]} c5 {[%emt 0:00:00]} 2. c3 {[%emt 0:00:00]} Nf6 {[%emt 0:00:00]} 3. e5 {[%emt 0:00:00]} Nd5 {[%emt 0:00:00]} 4. g3 {[%emt 0:00:00]} Nc6 {[%emt 0:00:00]} 5. Bg2 {[%emt 0:00:00]} e6 {[%emt 0:00:00]} 6. Nf3 {[%emt 0:00:00]} d6 {[%emt 0:00:00]} 7. exd6 {[%emt 0:00:00]} Bxd6 {[%emt 0:00:00]} 8. O-O {[%emt 0:00:00]} O-O {[%emt 0:00:06]} 9. d4 {[%emt 0:00:00]} cxd4 {[%emt 0:00:03]} 10. Nxd4 {[%emt 0:00:00]} Nxd4 {[%emt 0:00:03]} 11. Qxd4 {[%emt 0:00:00]} Qc7 {[%emt 0:00:04]} 12. Nd2 {[%emt 0:00:00]} Bd7 {[%emt 0:00:06]} 13. Ne4 {[%emt 0:00:00]} Bb5 {[%emt 0:00:18]} 14. Rd1 {[%emt 0:00:00]} Be7 {[%emt 0:00:37]} 15. a4 {[%emt 0:00:00]} Bc6 {[%emt 0:00:43]} 16. c4 {[%emt 0:00:00]} Rad8 {[%emt 0:03:30]} 17. Qxa7 {[%emt 0:00:00]} Nb6 {[%emt 0:02:22]} 18. Rxd8 {[%emt 0:00:00]} Rxd8 {[%emt 0:00:05]} 19. Be3 {[%emt 0:00:00]} Nc8 {[%emt 0:00:40]} 20. Qa8 {[%emt 0:00:00]} Nd6 {[%emt 0:00:09]} 21. Qa7 {[%emt 0:00:00]} Nxe4 {[%emt 0:00:08]} 22. Bb6 {[%emt 0:00:00]} Qb8 {[%emt 0:00:06]} 23. Qxb8 {[%emt 0:00:00]} Rxb8 {[%emt 0:00:03]} 24. a5 {[%emt 0:00:00]} Rc8 {[%emt 0:02:17]} 25. Rd1 {[%emt 0:00:00]} Kf8 {[%emt 0:01:17]} 26. b3 {[%emt 0:00:00]} f5 {[%emt 0:02:15]} 27. h4 {[%emt 0:00:00]} Ke8 {[%emt 0:01:51]} 28. h5 {[%emt 0:00:00]} g6 {[%emt 0:00:46]} 29. hxg6 {[%emt 0:00:00]} hxg6 {[%emt 0:00:01]} 30. g4 {[%emt 0:00:00]} Bd8 {[%emt 0:01:10]} 31. gxf5 {[%emt 0:00:00]} Bxb6 {[%emt 0:01:36]} 32. axb6 {[%emt 0:00:00]} gxf5 {[%emt 0:00:05]} 33. f4 {[%emt 0:00:00]} Ke7 {[%emt 0:00:41]} 34. b4 {[%emt 0:00:00]} Nc3 {[%emt 0:00:43]} 35. Rd3 {[%emt 0:00:00]} Ne2+ {[%emt 0:00:12]} 36. Kf2 {[%emt 0:00:00]} Nxf4 {[%emt 0:00:08]} 0-1

[Event "AUT-ch Open 2020"]
[Site "Graz"]
[Date "2020.02.20"]
[Round "8.20"]
[White "Bodrogi, Bendeguz"]
[Black "Menezes, Christoph"]
[Result "0-1"]
[ECO "D74"]
[WhiteElo "2032"]
[BlackElo "2032"]
[Annotator "NA"]
[PlyCount "58"]
[EventDate "2020.02.14"]
[EventType "swiss"]
[EventCountry "AUT"]
[SourceTitle "playchess.com"]
[Source "ChessBase"]
[SourceQuality "1"]
[TimeControl "40/5400+30:1800+30"]

1. Nf3 {[%emt 0:00:00]} d5 {[%emt 0:00:07]} 2. d4 {[%emt 0:00:04]} Nf6 {[%emt 0:00:34]} 3. c4 {[%emt 0:00:15]} g6 {[%emt 0:01:01]} 4. cxd5 {[%emt 0:01:57]} Nxd5 {[%emt 0:01:30]} 5. g3 {[%emt 0:00:11]} Bg7 {[%emt 0:00:28]} 6. Bg2 {[%emt 0:00:12]} O-O {[%emt 0:00:42]} 7. O-O {[%emt 0:00:38]} Nc6 {[%emt 0:00:56]} 8. e4 {[%emt 0:00:23]} Nb6 {[%emt 0:00:41]} 9. d5 {[%emt 0:02:40]} Na5 {[%emt 0:01:50]} 10. Nc3 {[%emt 0:00:26]} c6 {[%emt 0:04:35]} 11. Qe2 {[%emt 0:16:01]} cxd5 {[%emt 0:11:53]} 12. Rd1 {[%emt 0:00:13]} d4 {[%emt 0:02:59]} 13. e5 {[%emt 0:00:48]} Nc6 {[%emt 0:02:08]} 14. Nb5 {[%emt 0:01:36]} Bg4 {[%emt 0:03:23]} 15. Bf4 {[%emt 0:05:18]} a6 {[%emt 0:04:28]} 16. Na3 {[%emt 0:12:37]} Nd7 {[%emt 0:04:09]} 17. Nc4 {[%emt 0:01:10]} b5 {[%emt 0:12:36]} 18. h3 {[%emt 0:03:47]} Be6 {[%emt 0:02:39]} 19. Na3 {[%emt 0:06:10]} Qb6 {[%emt 0:04:29]} 20. Rac1 {[%emt 0:01:31]} Rac8 {[%emt 0:02:24]} 21. b3 {[%emt 0:16:35]} Bd5 {[%emt 0:03:43]} 22. e6 {[%emt 0:10:31]} Bxe6 {[%emt 0:06:00]} 23. Ng5 {[%emt 0:00:19]} Nce5 {[%emt 0:00:58]} 24. Nxe6 {[%emt 0:05:12]} Qxe6 {[%emt 0:00:21]} 25. Bb7 {[%emt 0:03:29]} Rxc1 {[%emt 0:04:46]} 26. Rxc1 {[%emt 0:00:11]} Qd6 {[%emt 0:08:43]} 27. Nb1 {[%emt 0:00:25]} Nc5 {[%emt 0:00:11]} 28. Bg2 {[%emt 0:00:23]} Ncd3 {[%emt 0:01:01]} 29. Bxe5 {[%emt 0:00:33]} Nxc1 {[%emt 0:00:09]} 0-1